fUST/lending_fUST_20250514
["ID","MTS","AMOUNT","RATE_DAILY","PERIOD"]
[360972354,1747171863253,-3069.63,0.00015615,2]
[360972355,1747171863263,-1733.83,0.00015615,2]
[360972356,1747171863272,-1997.4,0.00015616,2]
[360972357,1747171863281,-400.0,0.00015616,2]
[360972358,1747171863291,-400.0,0.00015616,2]
[360972359,1747171863300,-400.0,0.00015616,2]
[360972360,1747171863310,-400.0,0.00015616,2]
[360972361,1747171863320,-400.0,0.00015616,2]
[360972362,1747171863329,-400.0,0.00015616,2]
[360972363,1747171863339,-400.0,0.00015616,2]
[360972364,1747171863348,-702.95,0.00015616,2]
[360972365,1747171863358,-400.0,0.00015616,2]
[360972366,1747171863367,-400.0,0.00015616,2]
[360972367,1747171863377,-654.93,0.00015616,2]
[360972368,1747171863386,-400.0,0.00015616,2]
[360972369,1747171863396,-400.0,0.00015616,2]
[360972370,1747171863406,-400.0,0.00015616,2]
[360972371,1747171863415,-400.0,0.00015616,2]
[360972372,1747171863426,-400.0,0.00015616,2]
[360972373,1747171863436,-400.0,0.00015616,2]
[360972374,1747171863445,-439.25,0.00015616,2]
[360972375,1747171863455,-432.91,0.00015616,2]
[360972376,1747171863465,-400.0,0.00015616,2]
[360972377,1747171863474,-400.0,0.00015616,2]
[360972378,1747171863484,-847.75,0.00015616,2]
[360972379,1747171863495,-400.0,0.00015616,2]
[360972380,1747171863505,-400.0,0.00015616,2]
[360972381,1747171863514,-656.64,0.00015616,2]
[360972382,1747171863524,-400.0,0.00015616,2]
[360972383,1747171863608,-400.0,0.00015616,2]
[360972384,1747171863618,-400.0,0.00015616,2]
[360972385,1747171863628,-400.0,0.00015616,2]
[360972386,1747171863638,-400.0,0.00015616,2]
[360972387,1747171863647,-400.0,0.00015616,2]
[360972388,1747171863656,-400.0,0.00015616,2]
[360972389,1747171863666,-446.11,0.00015616,2]
[360972390,1747171863676,-400.0,0.00015616,2]
[360972391,1747171863686,-400.0,0.00015616,2]
[360972392,1747171863696,-398.28175229,0.00015616,2]
[360972393,1747171863706,-400.0,0.00015616,2]
[360972394,1747171863715,-465.07,0.00015616,2]
[360972395,1747171863725,-548.45,0.00015616,2]
[360972396,1747171863735,-1210.12,0.00015616,2]
[360972397,1747171863744,-440.46,0.00015616,2]
[360972398,1747171863754,-623.03,0.00015616,2]
[360972399,1747171863764,-400.0,0.00015616,2]
[360972400,1747171863774,-400.0,0.00015616,2]
[360972401,1747171863784,-400.0,0.00015616,2]
[360972402,1747171863794,-728.48,0.00015616,2]
[360972403,1747171863803,-400.0,0.00015616,2]
[360972404,1747171863813,-402.84,0.00015616,2]
[360972405,1747171863822,-400.0,0.00015616,2]
[360972406,1747171863832,-400.0,0.00015616,2]
[360972407,1747171863842,-400.0,0.00015616,2]
[360972408,1747171863852,-400.0,0.00015616,2]
[360972409,1747171863865,-400.0,0.00015616,2]
[360972410,1747171863875,-400.0,0.00015616,2]
[360972411,1747171863884,-835.13,0.00015616,2]
[360972412,1747171863894,-400.0,0.00015616,2]
[360972413,1747171863905,-400.0,0.00015616,2]
[360972414,1747171863918,-691.47,0.00015616,2]
[360972415,1747171863928,-400.0,0.00015616,2]
[360972416,1747171863938,-523.45,0.00015616,2]
[360972417,1747171863948,-969.04,0.00015616,2]
[360972418,1747171863957,-417.64,0.00015616,2]
[360972419,1747171863966,-400.0,0.00015616,2]
[360972420,1747171863975,-509.63,0.00015616,2]
[360972421,1747171863985,-665.56,0.00015616,2]
[360972422,1747171863994,-400.0,0.00015616,2]
[360972423,1747171864003,-400.0,0.00015616,2]
[360972424,1747171864012,-393.69212597,0.00015616,2]
[360972425,1747171864022,-400.0,0.00015616,2]
[360972426,1747171864032,-400.0,0.00015616,2]
[360972427,1747171864042,-581.28,0.00015616,2]
[360972428,1747171864051,-400.0,0.00015616,2]
[360972429,1747171864060,-964.08,0.00015616,2]
[360972430,1747171864069,-400.0,0.00015616,2]
[360972431,1747171864079,-400.0,0.00015616,2]
[360972432,1747171864088,-442.88,0.00015616,2]
[360972433,1747171864098,-331.21762927,0.00015616,2]
[360972434,1747171864108,-617.41,0.00015616,2]
[360972435,1747171864117,-400.0,0.00015616,2]
[360972436,1747171864127,-1387.69,0.00015616,2]
[360972437,1747171864135,-587.98,0.00015616,2]
[360972438,1747171864145,-400.0,0.00015616,2]
[360972439,1747171864154,-934.41,0.00015616,2]
[360972440,1747171864164,-400.0,0.00015616,2]
[360972441,1747171864174,-400.0,0.00015616,2]
[360972442,1747171864184,-455.37,0.00015616,2]
[360972443,1747171864194,-400.0,0.00015616,2]
[360972444,1747171864203,-715.7,0.00015616,2]
[360972445,1747171864213,-1050.1,0.00015616,2]
[360972446,1747171864223,-460.61,0.00015616,2]
[360972447,1747171864232,-400.0,0.00015616,2]
[360972448,1747171864241,-606.18,0.00015616,2]
[360972449,1747171864250,-1497.29,0.00015616,2]
[360972450,1747171864260,-977.91,0.00015616,2]
[360972451,1747171864269,-400.0,0.00015616,2]
[360972452,1747171864279,-400.0,0.00015616,2]
[360972453,1747171864289,-400.0,0.00015616,2]
[360972454,1747171864298,-670.12,0.00015616,2]
[360972455,1747171864307,-400.0,0.00015616,2]
[360972456,1747171864316,-400.0,0.00015616,2]
[360972457,1747171864326,-400.0,0.00015616,2]
[360972458,1747171864336,-649.09,0.00015616,2]
[360972459,1747171864345,-400.0,0.00015616,2]
[360972460,1747171864355,-400.0,0.00015616,2]
[360972461,1747171864364,-400.0,0.00015616,2]
[360972462,1747171864374,-500.0,0.00015616,2]
[360972463,1747171864383,-400.0,0.00015616,2]
[360972464,1747171864393,-825.86,0.00015616,2]
[360972465,1747171864402,-594.55,0.00015616,2]
[360972466,1747171864411,-631.73,0.00015616,2]
[360972467,1747171864422,-400.63,0.00015616,2]
[360972468,1747171864431,-2082.85,0.00015616,2]
[360972469,1747171864440,-1700.28,0.00015616,2]
[360972470,1747171864450,-400.0,0.00015616,2]
[360972471,1747171864460,-404.66,0.00015616,2]
[360972472,1747171864469,-400.0,0.00015616,2]
[360972473,1747171864478,-400.0,0.00015616,2]
[360972474,1747171864488,-498.37,0.00015616,2]
[360972475,1747171864497,-508.09,0.00015616,2]
[360972476,1747171864507,-400.0,0.00015616,2]
[360972477,1747171864516,-1219.22,0.00015616,2]
[360972478,1747171864525,-400.0,0.00015616,2]
[360972479,1747171864535,-400.0,0.00015616,2]
[360972480,1747171864544,-2779.5,0.00015616,2]
[360972481,1747171864553,-389.58055455,0.00015616,2]
[360972482,1747171864562,-400.0,0.00015616,2]
[360972483,1747171864571,-654.77,0.00015616,2]
[360972484,1747171864580,-400.0,0.00015616,2]
[360972485,1747171864589,-1011.29,0.00015616,2]
[360972486,1747171864598,-400.0,0.00015616,2]
[360972487,1747171864608,-400.0,0.00015616,2]
[360972488,1747171864617,-400.0,0.00015616,2]
[360972489,1747171864627,-1626.33994534,0.00015616,2]
[360972490,1747171864936,-131.62005466,0.00015616,2]
[360972491,1747171864947,-479.86780134,0.00015616,2]
[360972493,1747171865974,-1148.33,0.00013698,2]
[360972494,1747171865984,-400.0,0.00013698,2]
[360972495,1747171865994,-1148.33,0.00013698,2]
[360972496,1747171866004,-1148.33,0.00013698,2]
[360972497,1747171866014,-1148.33,0.00013698,2]
[360972498,1747171866024,-1019.15253229,0.00013698,2]
[360972499,1747171866041,-129.17746771,0.00013698,2]
[360972500,1747171866050,-233.4495096,0.00013698,2]
[360972501,1747171866062,-914.8804904,0.00013698,2]
[360972502,1747171866072,-1148.37128627,0.00013698,2]
[360972503,1747171866082,-455.42,0.00013698,2]
[360972504,1747171866092,-400.0,0.00013972,2]
[360972505,1747171866102,-400.0,0.00013972,2]
[360972506,1747171866112,-546.0,0.0001412,2]
[360972507,1747171866121,-140.80541393,0.00014246,2]
[360972508,1747171866245,-416.81721438,0.00013698,2]
[360972509,1747171866258,-33.40278562,0.00013698,2]
[360972510,1747171866268,-259.19458607,0.00014246,2]
[360972511,1747171866277,-400.0,0.00014246,2]
[360972512,1747171866287,-400.0,0.0001452,2]
[360972513,1747171866297,-248.4320047,0.0001452,2]
[360972514,1747171866309,-151.5679953,0.0001452,2]
[360972515,1747171866319,-400.0,0.00014794,2]
[360972516,1747171866329,-400.0,0.00014794,2]
[360972517,1747171866339,-49.4126456,0.00015068,2]
[360972518,1747171867179,-634.37443,0.000129,2]
[360972519,1747171867190,-5000.0,0.00013561,2]
[360972520,1747171867201,-400.0,0.00013698,2]
[360972521,1747171867211,-400.0,0.00013698,2]
[360972522,1747171867221,-400.0,0.00013698,2]
[360972523,1747171867230,-400.0,0.00013698,2]
[360972524,1747171867241,-427.14,0.00013698,2]
[360972525,1747171867251,-400.0,0.00013972,2]
[360972526,1747171867261,-224.49,0.00013972,2]
[360972527,1747171867271,-400.0,0.00014246,2]
[360972528,1747171867281,-400.0,0.0001452,2]
[360972529,1747171867291,-400.0,0.00014794,2]
[360972530,1747171867301,-350.5873544,0.00015068,2]
[360972531,1747171867311,-400.0,0.00015068,2]
[360972532,1747171867322,-400.0,0.00015068,2]
[360972533,1747171867332,-316.46415648,0.00015342,2]
[360972534,1747171867342,-400.0,0.00015342,2]
[360972535,1747171867352,-348.68219866,0.00015616,2]
[360972536,1747171867362,-639.16,0.00015616,2]
[360972537,1747171867372,-910.85,0.00015616,2]
[360972538,1747171867382,-400.0,0.00015616,2]
[360972539,1747171867392,-227.70277257,0.00015616,2]
[360972540,1747171867636,-246.28437621,0.00013698,2]
[360972541,1747171867647,-400.0,0.00015342,2]
[360972542,1747171867658,-1204.53722743,0.00015616,2]
[360972543,1747171867668,-400.0,0.00015616,2]
[360972544,1747171867679,-1271.55,0.00015616,2]
[360972545,1747171867689,-1964.72,0.00015616,2]
[360972546,1747171867699,-1346.18,0.00015616,2]
[360972547,1747171867709,-1807.95,0.00015616,2]
[360972548,1747171867719,-1872.93,0.00015616,2]
[360972549,1747171867730,-2038.91,0.00015616,2]
[360972550,1747171867740,-583.95,0.00015616,2]
[360972551,1747171867750,-400.0,0.00015616,2]
[360972552,1747171867760,-400.0,0.00015616,2]
[360972553,1747171867770,-444.52,0.00015616,2]
[360972554,1747171867780,-400.0,0.00015616,2]
[360972555,1747171867791,-777.75,0.00015616,2]
[360972556,1747171867802,-1133.72,0.00015616,2]
[360972557,1747171867813,-1278.45,0.00015616,2]
[360972558,1747171867823,-2383.74,0.00015616,2]
[360972559,1747171867834,-1367.7,0.00015616,2]
[360972560,1747171867844,-2669.62,0.00015616,2]
[360972561,1747171867854,-1343.88,0.00015616,2]
[360972562,1747171867866,-6469.5,0.00015616,2]
[360972563,1747171867876,-400.0,0.00015616,2]
[360972564,1747171867886,-202.54468237,0.00015616,2]
[360972565,1747171867896,-1188.47,0.00015616,2]
[360972566,1747171867907,-400.0,0.00015616,2]
[360972567,1747171867917,-1336.58,0.00015616,2]
[360972568,1747171867928,-400.0,0.00015616,2]
[360972569,1747171867940,-400.0,0.00015616,2]
[360972570,1747171867950,-400.0,0.00015616,2]
[360972571,1747171867961,-400.0,0.00015616,2]
[360972572,1747171867972,-400.0,0.00015616,2]
[360972573,1747171867981,-451.71,0.00015616,2]
[360972574,1747171867992,-400.0,0.00015616,2]
[360972575,1747171868002,-531.31,0.00015616,2]
[360972576,1747171868014,-443.98,0.00015616,2]
[360972577,1747171868025,-405.74,0.00015616,2]
[360972578,1747171868036,-400.0,0.00015616,2]
[360972579,1747171868047,-400.0,0.00015616,2]
[360972580,1747171868058,-1336.54,0.00015616,2]
[360972581,1747171868069,-400.0,0.00015616,2]
[360972582,1747171868080,-733.54,0.00015616,2]
[360972583,1747171868311,-602.94,0.00015616,2]
[360972584,1747171868323,-400.0,0.00015616,2]
[360972585,1747171868334,-1080.08,0.00015616,2]
[360972586,1747171868344,-420.67,0.00015616,2]
[360972587,1747171868355,-400.0,0.00015616,2]
[360972588,1747171868365,-693.78,0.00015616,2]
[360972589,1747171868375,-1431.64,0.00015616,2]
[360972590,1747171868384,-400.0,0.00015616,2]
[360972591,1747171868395,-400.0,0.00015616,2]
[360972592,1747171868405,-654.02,0.00015616,2]
[360972593,1747171868416,-1357.77,0.00015616,2]
[360972594,1747171868428,-1212.64,0.00015616,2]
[360972595,1747171868438,-400.0,0.00015616,2]
[360972596,1747171868448,-2979.51,0.00015616,2]
[360972597,1747171868458,-400.0,0.00015616,2]
[360972598,1747171868468,-400.0,0.00015616,2]
[360972599,1747171868478,-791.3,0.00015616,2]
[360972600,1747171868487,-400.0,0.00015616,2]
[360972601,1747171868498,-6691.48,0.00015616,2]
[360972602,1747171868508,-400.0,0.00015616,2]
[360972603,1747171868518,-3240.36,0.00015616,2]
[360972604,1747171868529,-400.0,0.00015616,2]
[360972605,1747171868539,-796.34,0.00015616,2]
[360972606,1747171868550,-1457.87,0.00015616,2]
[360972607,1747171868560,-400.0,0.00015616,2]
[360972608,1747171868570,-1151.93,0.00015616,2]
[360972609,1747171868580,-575.28,0.00015616,2]
[360972610,1747171868592,-1965.01,0.00015616,2]
[360972611,1747171868602,-400.0,0.00015616,2]
[360972612,1747171868613,-1151.88,0.00015616,2]
[360972613,1747171868623,-523.95,0.00015616,2]
[360972614,1747171868633,-780.64,0.00015616,2]
[360972615,1747171868643,-2254.02,0.00015616,2]
[360972616,1747171868653,-885.61,0.00015616,2]
[360972617,1747171868663,-571.86,0.00015616,2]
[360972618,1747171868673,-400.0,0.00015616,2]
[360972619,1747171868684,-1896.51,0.00015616,2]
[360972620,1747171868694,-1446.73,0.00015616,2]
[360972621,1747171868705,-400.0,0.00015616,2]
[360972622,1747171868717,-400.0,0.00015616,2]
[360972623,1747171868727,-400.0,0.00015616,2]
[360972624,1747171868738,-400.0,0.00015616,2]
[360972625,1747171868750,-2969.24,0.00015616,2]
[360972626,1747171868760,-761.95,0.00015616,2]
[360972627,1747171868770,-3596.39,0.00015616,2]
[360972628,1747171868780,-2929.92,0.00015616,2]
[360972629,1747171868790,-629.36,0.00015616,2]
[360972630,1747171868801,-400.0,0.00015616,2]
[360972631,1747171868810,-6035.7,0.00015616,2]
[360972632,1747171868821,-400.0,0.00015616,2]
[360972633,1747171868832,-720.33,0.00015616,2]
[360972634,1747171868842,-2648.74,0.00015616,2]
[360972635,1747171868852,-1698.59,0.00015616,2]
[360972636,1747171868862,-904.66,0.00015616,2]
[360972637,1747171868876,-458.91,0.00015616,2]
[360972638,1747171868886,-488.71,0.00015616,2]
[360972639,1747171868896,-4244.97,0.00015616,2]
[360972640,1747171868907,-400.0,0.00015616,2]
[360972641,1747171868919,-408.43,0.00015616,2]
[360972642,1747171868933,-424.56,0.00015616,2]
[360972643,1747171868943,-400.0,0.00015616,2]
[360972644,1747171868953,-832.4,0.00015616,2]
[360972645,1747171868963,-400.0,0.00015616,2]
[360972646,1747171868973,-687.37,0.00015616,2]
[360972647,1747171868983,-593.97,0.00015616,2]
[360972648,1747171868993,-933.65,0.00015616,2]
[360972649,1747171869003,-7895.42,0.00015616,2]
[360972650,1747171869013,-729.98,0.00015616,2]
[360972651,1747171869023,-781.28,0.00015616,2]
[360972652,1747171869033,-508.61,0.00015616,2]
[360972653,1747171869043,-1748.5,0.00015616,2]
[360972654,1747171869053,-400.0,0.00015616,2]
[360972655,1747171869063,-968.62,0.00015616,2]
[360972656,1747171869072,-2237.52,0.00015616,2]
[360972657,1747171869082,-400.0,0.00015616,2]
[360972658,1747171869091,-400.0,0.00015616,2]
[360972659,1747171869101,-948.76,0.00015616,2]
[360972660,1747171869111,-12091.79,0.00015616,2]
[360972661,1747171869121,-400.0,0.00015616,2]
[360972662,1747171869131,-3495.32,0.00015616,2]
[360972663,1747171869141,-400.0,0.00015616,2]
[360972664,1747171869150,-1362.33,0.00015616,2]
[360972665,1747171869160,-789.92,0.00015616,2]
[360972666,1747171869170,-4347.15,0.00015616,2]
[360972667,1747171869181,-400.0,0.00015616,2]
[360972668,1747171869192,-907.61,0.00015616,2]
[360972669,1747171869202,-1962.79,0.00015616,2]
[360972670,1747171869212,-389.78396562,0.00015616,2]
[360972671,1747171869222,-2729.47,0.00015616,2]
[360972672,1747171869232,-400.0,0.00015616,2]
[360972673,1747171869242,-400.0,0.00015616,2]
[360972674,1747171869252,-7706.43,0.00015616,2]
[360972675,1747171869262,-657.59,0.00015616,2]
[360972676,1747171869271,-1074.08,0.00015616,2]
[360972677,1747171869281,-2264.38,0.00015616,2]
[360972678,1747171869291,-400.0,0.00015616,2]
[360972679,1747171869301,-400.0,0.00015616,2]
[360972680,1747171869311,-400.0,0.00015616,2]
[360972681,1747171869321,-823.0,0.00015618,2]
[360972682,1747171869330,-500.0,0.00015637,2]
[360972683,1747171869340,-2000.0,0.000157,2]
[360972684,1747171869349,-155.05232988,0.00015735,2]
[360972685,1747171869359,-500.0,0.0001575,2]
[360972686,1747171869368,-195.027853,0.00015753,7]
[360972687,1747171869378,-306.0,0.00015827,2]
[360972688,1747171869387,-254.1641584,0.00015827,2]
[360972689,1747171869397,-500.0,0.00015837,2]
[360972690,1747171869407,-500.0,0.00015837,2]
[360972691,1747171869416,-500.0,0.00015837,2]
[360972692,1747171869427,-500.18956804,0.00015837,2]
[360972693,1747171869438,-500.0,0.00015837,2]
[360972694,1747171869448,-3069.63,0.00015889,2]
[360972695,1747171869458,-1733.83,0.00015889,2]
[360972696,1747171869467,-1000.0,0.0001589,7]
[360972697,1747171869478,-1997.4,0.0001589,2]
[360972698,1747171869488,-400.0,0.0001589,2]
[360972699,1747171869498,-400.0,0.0001589,2]
[360972700,1747171869508,-400.0,0.0001589,2]
[360972701,1747171869517,-400.0,0.0001589,2]
[360972702,1747171869527,-152.82945037,0.0001589,2]
[360972703,1747171869537,-400.0,0.0001589,2]
[360972704,1747171869547,-702.95,0.0001589,2]
[360972705,1747171869557,-400.0,0.0001589,2]
[360972706,1747171869567,-400.0,0.0001589,2]
[360972707,1747171869578,-654.93,0.0001589,2]
[360972708,1747171869588,-400.0,0.0001589,2]
[360972709,1747171869598,-400.0,0.0001589,2]
[360972710,1747171869608,-400.0,0.0001589,2]
[360972711,1747171869617,-400.0,0.0001589,2]
[360972712,1747171869627,-400.0,0.0001589,2]
[360972713,1747171869638,-400.0,0.0001589,2]
[360972714,1747171869648,-439.25,0.0001589,2]
[360972715,1747171869658,-432.91,0.0001589,2]
[360972716,1747171869668,-400.0,0.0001589,2]
[360972717,1747171869680,-400.0,0.0001589,2]
[360972718,1747171869690,-847.75,0.0001589,2]
[360972719,1747171869700,-400.0,0.0001589,2]
[360972720,1747171869709,-400.0,0.0001589,2]
[360972721,1747171869720,-656.64,0.0001589,2]
[360972722,1747171869730,-400.0,0.0001589,2]
[360972723,1747171869740,-400.0,0.0001589,2]
[360972724,1747171869749,-400.0,0.0001589,2]
[360972725,1747171869759,-400.0,0.0001589,2]
[360972726,1747171869769,-400.0,0.0001589,2]
[360972727,1747171869780,-400.0,0.0001589,2]
[360972728,1747171869791,-400.0,0.0001589,2]
[360972729,1747171869800,-446.11,0.0001589,2]
[360972730,1747171869812,-400.0,0.0001589,2]
[360972731,1747171869822,-400.0,0.0001589,2]
[360972732,1747171869831,-400.0,0.0001589,2]
[360972733,1747171869841,-465.07,0.0001589,2]
[360972734,1747171869851,-548.45,0.0001589,2]
[360972735,1747171869861,-1210.12,0.0001589,2]
[360972736,1747171869874,-440.46,0.0001589,2]
[360972737,1747171869883,-623.03,0.0001589,2]
[360972738,1747171869892,-400.0,0.0001589,2]
[360972739,1747171869902,-400.0,0.0001589,2]
[360972740,1747171869913,-400.0,0.0001589,2]
[360972741,1747171869924,-728.48,0.0001589,2]
[360972742,1747171869935,-400.0,0.0001589,2]
[360972743,1747171869945,-402.84,0.0001589,2]
[360972744,1747171869955,-400.0,0.0001589,2]
[360972745,1747171869965,-400.0,0.0001589,2]
[360972746,1747171869975,-400.0,0.0001589,2]
[360972747,1747171869985,-400.0,0.0001589,2]
[360972748,1747171869994,-529.82346143,0.0001589,2]
[360972749,1747171870003,-400.0,0.0001589,2]
[360972750,1747171870013,-691.47,0.0001589,2]
[360972751,1747171870022,-523.45,0.0001589,2]
[360972752,1747171870032,-969.04,0.0001589,2]
[360972753,1747171870043,-417.64,0.0001589,2]
[360972754,1747171870053,-342.53286852,0.0001589,2]
[360972755,1747171870062,-509.63,0.0001589,2]
[360972756,1747171870072,-665.56,0.0001589,2]
[360972757,1747171870082,-400.0,0.0001589,2]
[360972758,1747171870092,-400.0,0.0001589,2]
[360972759,1747171870101,-400.0,0.0001589,2]
[360972760,1747171870111,-400.0,0.0001589,2]
[360972761,1747171870121,-581.28,0.0001589,2]
[360972762,1747171870131,-400.0,0.0001589,2]
[360972763,1747171870140,-964.08,0.0001589,2]
[360972764,1747171870150,-400.0,0.0001589,2]
[360972765,1747171870160,-400.0,0.0001589,2]
[360972766,1747171870170,-442.88,0.0001589,2]
[360972767,1747171870182,-617.41,0.0001589,2]
[360972768,1747171870192,-400.0,0.0001589,2]
[360972769,1747171870202,-1387.69,0.0001589,2]
[360972770,1747171870211,-587.98,0.0001589,2]
[360972771,1747171870221,-400.0,0.0001589,2]
[360972772,1747171870231,-934.41,0.0001589,2]
[360972773,1747171870241,-400.0,0.0001589,2]
[360972774,1747171870251,-400.0,0.0001589,2]
[360972775,1747171870261,-455.37,0.0001589,2]
[360972776,1747171870271,-400.0,0.0001589,2]
[360972777,1747171870281,-715.7,0.0001589,2]
[360972778,1747171870291,-1050.1,0.0001589,2]
[360972779,1747171870301,-460.61,0.0001589,2]
[360972780,1747171870311,-400.0,0.0001589,2]
[360972781,1747171870320,-606.18,0.0001589,2]
[360972782,1747171870330,-1497.29,0.0001589,2]
[360972783,1747171870340,-977.91,0.0001589,2]
[360972784,1747171870350,-400.0,0.0001589,2]
[360972785,1747171870359,-400.0,0.0001589,2]
[360972786,1747171870369,-400.0,0.0001589,2]
[360972787,1747171870378,-670.12,0.0001589,2]
[360972788,1747171870389,-348.99929957,0.0001589,2]
[360972789,1747171870400,-400.0,0.0001589,2]
[360972790,1747171870410,-400.0,0.0001589,2]
[360972791,1747171870420,-649.09,0.0001589,2]
[360972792,1747171870430,-400.0,0.0001589,2]
[360972793,1747171870440,-400.0,0.0001589,2]
[360972794,1747171870450,-400.0,0.0001589,2]
[360972795,1747171870460,-500.0,0.0001589,2]
[360972796,1747171870470,-400.0,0.0001589,2]
[360972797,1747171870479,-825.86,0.0001589,2]
[360972798,1747171870489,-594.55,0.0001589,2]
[360972799,1747171870499,-631.73,0.0001589,2]
[360972800,1747171870509,-400.63,0.0001589,2]
[360972801,1747171870519,-2082.85,0.0001589,2]
[360972802,1747171870529,-1700.28,0.0001589,2]
[360972804,1747171870538,-393.41517041,0.0001589,2]
[360972805,1747171870548,-404.66,0.0001589,2]
[360972806,1747171870558,-400.0,0.0001589,2]
[360972807,1747171870567,-400.0,0.0001589,2]
[360972808,1747171870577,-498.37,0.0001589,2]
[360972809,1747171870587,-508.09,0.0001589,2]
[360972810,1747171870597,-400.0,0.0001589,2]
[360972811,1747171870607,-1219.22,0.0001589,2]
[360972812,1747171870617,-400.0,0.0001589,2]
[360972813,1747171870627,-400.0,0.0001589,2]
[360972814,1747171870636,-2779.5,0.0001589,2]
[360972815,1747171870646,-400.0,0.0001589,2]
[360972816,1747171870655,-654.77,0.0001589,2]
[360972817,1747171870665,-179.77109002,0.0001589,2]
[360972818,1747171870675,-1011.29,0.0001589,2]
[360972819,1747171870684,-400.0,0.0001589,2]
[360972820,1747171870693,-400.0,0.0001589,2]
[360972821,1747171870703,-400.0,0.0001589,2]
[360972822,1747171870712,-1757.96,0.0001589,2]
[360972823,1747171870722,-828.55,0.0001589,2]
[360972824,1747171870731,-639.16,0.0001589,2]
[360972825,1747171870741,-910.85,0.0001589,2]
[360972826,1747171870750,-371.3165544,0.0001589,2]
[360972827,1747171870760,-1432.24,0.0001589,2]
[360972828,1747171870769,-400.0,0.0001589,2]
[360972829,1747171870859,-1271.55,0.0001589,2]
[360972830,1747171870871,-1964.72,0.0001589,2]
[360972831,1747171870881,-1346.18,0.0001589,2]
[360972832,1747171870890,-1807.95,0.0001589,2]
[360972833,1747171870899,-1872.93,0.0001589,2]
[360972834,1747171870909,-2038.91,0.0001589,2]
[360972835,1747171870919,-583.95,0.0001589,2]
[360972836,1747171870929,-400.0,0.0001589,2]
[360972837,1747171870939,-400.0,0.0001589,2]
[360972838,1747171870949,-444.52,0.0001589,2]
[360972839,1747171870959,-400.0,0.0001589,2]
[360972840,1747171870968,-777.75,0.0001589,2]
[360972841,1747171870977,-1133.72,0.0001589,2]
[360972842,1747171870987,-1278.45,0.0001589,2]
[360972843,1747171870997,-2383.74,0.0001589,2]
[360972844,1747171871006,-1367.7,0.0001589,2]
[360972845,1747171871016,-2669.62,0.0001589,2]
[360972846,1747171871025,-1343.88,0.0001589,2]
[360972847,1747171871035,-6469.5,0.0001589,2]
[360972848,1747171871045,-400.0,0.0001589,2]
[360972849,1747171871055,-1188.47,0.0001589,2]
[360972850,1747171871065,-260.38319946,0.0001589,2]
[360972851,1747171871075,-1336.58,0.0001589,2]
[360972852,1747171871085,-400.0,0.0001589,2]
[360972853,1747171871094,-400.0,0.0001589,2]
[360972854,1747171871104,-400.0,0.0001589,2]
[360972855,1747171871113,-400.0,0.0001589,2]